fUSD/lending_fUSD_20260221
["ID","MTS","AMOUNT","RATE_DAILY","PERIOD"]
[406258395,1771666323550,-480.38,0.00018173,2]
[406258396,1771666323559,-152.0,0.00018186,2]
[406258397,1771666323568,-153.0,0.00018186,2]
[406258398,1771666323578,-151.0,0.00018186,2]
[406258399,1771666323587,-151.0,0.00018186,2]
[406258400,1771666323596,-223.84280036,0.00018186,2]
[406258401,1771666323605,-151.0,0.00018186,2]
[406258402,1771666323615,-151.0,0.00018186,2]
[406258403,1771666323624,-151.0,0.00018186,2]
[406258404,1771666323633,-151.0,0.00018186,2]
[406258405,1771666323642,-296.0,0.00018186,2]
[406258406,1771666323652,-300.0,0.00018212,2]
[406258407,1771666323662,-152.0,0.00018213,2]
[406258408,1771666323672,-1509.0,0.00018213,2]
[406258409,1771666323681,-152.0,0.00018213,2]
[406258410,1771666323691,-1509.0,0.00018213,2]
[406258411,1771666323700,-152.0,0.00018213,2]
[406258412,1771666323710,-1509.0,0.00018213,2]
[406258413,1771666323719,-152.0,0.00018213,2]
[406258414,1771666323728,-159.0,0.00018213,2]
[406258415,1771666323738,-152.0,0.00018213,2]
[406258416,1771666323747,-1509.0,0.00018213,2]
[406258417,1771666323757,-1509.0,0.00018213,2]
[406258418,1771666323767,-152.0,0.00018213,2]
[406258419,1771666323776,-152.0,0.00018213,2]
[406258420,1771666323785,-159.30004279,0.00018213,2]
[406258421,1771666323794,-152.0,0.00018213,2]
[406258422,1771666323804,-152.0,0.00018213,2]
[406258423,1771666323815,-1509.0,0.00018213,2]
[406258424,1771666323825,-152.0,0.00018213,2]
[406258425,1771666323834,-1509.0,0.00018213,2]
[406258426,1771666323844,-152.0,0.00018213,2]
[406258427,1771666323853,-152.0,0.00018213,2]
[406258428,1771666323863,-1509.0,0.00018213,2]
[406258429,1771666323872,-153.0,0.00018213,2]
[406258430,1771666323881,-152.0,0.00018213,2]
[406258431,1771666323890,-1509.0,0.00018213,2]
[406258432,1771666323899,-153.0,0.00018213,2]
[406258433,1771666323908,-152.0,0.00018213,2]
[406258434,1771666323918,-152.0,0.00018213,2]
[406258435,1771666323927,-1509.0,0.00018213,2]
[406258436,1771666323936,-153.0,0.00018213,2]
[406258437,1771666323945,-152.0,0.00018213,2]
[406258438,1771666323955,-152.0,0.00018213,2]
[406258439,1771666323964,-1509.0,0.00018213,2]
[406258440,1771666323973,-152.0,0.00018213,2]
[406258441,1771666323982,-153.0,0.00018213,2]
[406258442,1771666323991,-152.0,0.00018213,2]
[406258443,1771666324000,-1509.0,0.00018213,2]
[406258444,1771666324009,-152.0,0.00018213,2]
[406258445,1771666324019,-153.0,0.00018213,2]
[406258446,1771666324028,-152.0,0.00018213,2]
[406258447,1771666324038,-1509.0,0.00018213,2]
[406258448,1771666324047,-152.0,0.00018213,2]
[406258449,1771666324056,-152.0,0.00018213,2]
[406258450,1771666324066,-1509.0,0.00018213,2]
[406258451,1771666324075,-152.0,0.00018213,2]
[406258452,1771666324084,-152.0,0.00018213,2]
[406258453,1771666324094,-152.0,0.00018213,2]
[406258454,1771666324103,-1509.0,0.00018213,2]
[406258455,1771666324112,-152.0,0.00018213,2]
[406258456,1771666324122,-1509.0,0.00018213,2]
[406258457,1771666324131,-152.0,0.00018213,2]
[406258458,1771666324140,-1509.0,0.00018213,2]
[406258459,1771666324150,-152.0,0.00018213,2]
[406258460,1771666324159,-152.0,0.00018213,2]
[406258461,1771666324169,-1509.0,0.00018213,2]
[406258462,1771666324179,-152.0,0.00018213,2]
[406258463,1771666324188,-1509.0,0.00018213,2]
[406258464,1771666324198,-152.0,0.00018213,2]
[406258465,1771666324206,-152.0,0.00018213,2]
[406258466,1771666324216,-152.0,0.00018213,2]
[406258467,1771666324225,-152.0,0.00018213,2]
[406258468,1771666324235,-152.0,0.00018213,2]
[406258469,1771666324244,-1509.0,0.00018213,2]
[406258470,1771666324253,-152.0,0.00018213,2]
[406258471,1771666324263,-1509.0,0.00018213,2]
[406258472,1771666324273,-152.0,0.00018213,2]
[406258473,1771666324282,-1509.0,0.00018213,2]
[406258474,1771666324291,-152.0,0.00018213,2]
[406258475,1771666324300,-1509.0,0.00018213,2]
[406258476,1771666324309,-152.0,0.00018213,2]
[406258477,1771666324319,-1509.0,0.00018213,2]
[406258478,1771666324329,-152.76573245,0.00018213,2]
[406258479,1771666324338,-1509.0,0.00018213,2]
[406258480,1771666324348,-1509.0,0.00018213,2]
[406258481,1771666324357,-1509.0,0.00018213,2]
[406258482,1771666324366,-1509.0,0.00018213,2]
[406258483,1771666324376,-1509.0,0.00018213,2]
[406258484,1771666324386,-4895.0,0.00018214,2]
[406258485,1771666324396,-187.78006525,0.00018224,2]
[406258486,1771666324405,-298.26089446,0.00018224,2]
[406258487,1771666324422,-369.46,0.00018247,2]
[406258488,1771666324432,-480.38,0.00018265,2]
[406258489,1771666324441,-184.17,0.00018331,2]
[406258490,1771666324452,-421.0,0.00018338,2]
[406258491,1771666324464,-300.0,0.00018355,2]
[406258492,1771666324473,-86872.0,0.00018356,2]
[406258493,1771666324483,-350.0,0.00018409,2]
[406258494,1771666324492,-350.0,0.0001842,2]
[406258495,1771666324501,-168.3888056,0.00018497,2]
[406258496,1771666324510,-166.66,0.00018507,2]
[406258497,1771666324519,-1000.0,0.00018521,2]
[406258498,1771666324529,-501.82753949,0.00018521,2]
[406258499,1771666324539,-1001.90174129,0.00018521,2]
[406258500,1771666324548,-1000.0,0.00018521,2]
[406258501,1771666324558,-1000.0,0.00018521,2]
[406258502,1771666324567,-1000.0,0.00018521,2]
[406258503,1771666324578,-501.32982636,0.00018521,2]
[406258504,1771666324587,-201.16073928,0.00018521,2]
[406258505,1771666324597,-1000.0,0.00018521,2]
[406258506,1771666324607,-1000.0,0.00018521,2]
[406258507,1771666324616,-900.0,0.00018545,2]
[406258508,1771666324626,-421.0,0.00018617,2]
[406258509,1771666324635,-4895.0,0.00018634,2]
[406258510,1771666324645,-421.0,0.00018636,2]
[406258511,1771666324654,-421.0,0.00018668,2]
[406258512,1771666324664,-421.0,0.0001867,2]
[406258513,1771666324673,-421.0,0.00018683,2]
[406258514,1771666324683,-421.0,0.00018685,2]
[406258515,1771666324692,-350.0,0.00018745,2]
[406258516,1771666324702,-421.0,0.0001876,2]
[406258517,1771666324712,-194.72792766,0.00018772,2]
[406258518,1771666324722,-309.29654756,0.00018772,2]
[406258519,1771666324732,-2953.91,0.0001882,2]
[406258520,1771666324741,-350.0,0.00018836,2]
[406258521,1771666324752,-350.0,0.00018858,2]
[406258522,1771666324761,-1600.0,0.00018904,2]
[406258523,1771666324770,-166.67,0.00018925,2]
[406258524,1771666324779,-300.0,0.00018999,2]
[406258525,1771666324789,-35296.316,0.00019,2]
[406258526,1771666324798,-5183.5554084,0.00019,2]
[406258527,1771666324807,-500.0,0.00019,2]
[406258528,1771666324816,-169.73979688,0.00019,2]
[406258529,1771666324825,-207.58634277,0.00019,2]
[406258530,1771666324836,-350.0,0.00019,2]
[406258531,1771666324846,-100712.45877062,0.00019,2]
[406258532,1771666324855,-166.66,0.00019047,2]
[406258533,1771666324865,-1500.0,0.00019068,2]
[406258534,1771666324874,-1004.36409669,0.00019068,2]
[406258535,1771666324884,-1500.0,0.00019068,2]
[406258536,1771666324893,-1500.0,0.00019068,2]
[406258537,1771666324902,-1500.0,0.00019068,2]
[406258538,1771666324912,-1633.60985858,0.00019068,2]
[406258539,1771666324921,-369.46,0.00019077,2]
[406258540,1771666324931,-1000.0,0.00019136,2]
[406258541,1771666324940,-3002.55514653,0.00019178,2]
[406258542,1771666324950,-254.909638,0.00019178,2]
[406258543,1771666324959,-254.909638,0.00019178,2]
[406258544,1771666324968,-254.909638,0.00019178,2]
[406258545,1771666324978,-254.909638,0.00019178,2]
[406258546,1771666324988,-595.396617,0.00019178,2]
[406258547,1771666324997,-223.911213,0.00019178,2]
[406258548,1771666325007,-595.396617,0.00019178,2]
[406258549,1771666325016,-223.911213,0.00019178,2]
[406258550,1771666325026,-595.396617,0.00019178,2]
[406258551,1771666325035,-223.911213,0.00019178,2]
[406258552,1771666325045,-595.396617,0.00019178,2]
[406258553,1771666325055,-223.911213,0.00019178,2]
[406258554,1771666325065,-20197.8,0.00019178,2]
[406258555,1771666325074,-522.0,0.000192,4]
[406258556,1771666325083,-700.0,0.00019252,2]
[406258557,1771666325092,-201.93286099,0.0001932,2]
[406258558,1771666325101,-320.74051982,0.0001932,2]
[406258559,1771666325111,-350.0,0.00019328,2]
[406258560,1771666325120,-350.0,0.00019349,2]
[406258561,1771666325131,-350.0,0.0001955,2]
[406258562,1771666325141,-1600.0,0.00019595,2]
[406258563,1771666325151,-2005.31165889,0.00019616,2]
[406258564,1771666325161,-2000.0,0.00019616,2]
[406258565,1771666325171,-942.50350226,0.00019616,2]
[406258566,1771666325181,-2000.0,0.00019616,2]
[406258567,1771666325191,-2953.91,0.00019638,2]
[406258568,1771666325202,-573.47,0.00019642,2]
[406258569,1771666325211,-350.0,0.00019643,2]
[406258570,1771666325221,-166.67,0.00019863,2]
[406258571,1771666325231,-174.61919141,0.00019866,2]
[406258572,1771666325240,-599.60298507,0.00019867,2]
[406258573,1771666325250,-209.40437684,0.00019868,2]
[406258574,1771666325259,-332.60791905,0.00019868,2]
[406258575,1771666325269,-369.46,0.00019906,2]
[406258576,1771666325279,-216.12984512,0.00019997,3]
[406258577,1771666325289,-300.0,0.00019999,2]
[406258578,1771666325298,-180.75590903,0.0002,10]
[406258579,1771666325307,-25669.53904138,0.0002,2]
[406258580,1771666325316,-3950.0,0.0002,2]
[406258581,1771666325325,-12961.48999676,0.0002,2]
[406258582,1771666325335,-1472.43640051,0.0002,5]
[406258583,1771666325346,-170.17356141,0.0002,20]
[406258584,1771666325355,-734.27420741,0.0002,2]
[406258585,1771666325365,-8720.0,0.0002001,2]
[406258586,1771666325376,-2500.0,0.00020164,2]
[406258587,1771666325386,-2500.0,0.00020164,2]
[406258588,1771666325395,-217.15233878,0.00020416,2]
[406258589,1771666325405,-495.58960583,0.00020416,2]
[406258590,1771666325414,-333.76,0.00020467,30]
[406258591,1771666325423,-21599.55,0.00020548,2]
[406258592,1771666325434,-22732.29129745,0.000207,2]
[406258593,1771666325444,-1102.50975795,0.00020712,2]
[406258594,1771666325454,-3000.0,0.00020712,2]
[406258595,1771666325464,-369.46,0.00020735,2]
[406258596,1771666325473,-500.0,0.00020866,2]
[406258597,1771666325483,-500.0,0.00020866,2]
[406258598,1771666325492,-500.0,0.00020866,2]
[406258599,1771666325502,-300.0,0.00020872,2]
[406258600,1771666325511,-500.0,0.00020873,2]
[406258601,1771666325520,-163.96862356,0.00020873,2]
[406258602,1771666325530,-500.0,0.00020873,2]
[406258603,1771666325539,-500.3962333,0.00020873,2]
[406258604,1771666325548,-500.0,0.00020873,2]
[406258605,1771666325558,-500.0,0.00020873,2]
[406258606,1771666325567,-500.0,0.00020873,2]
[406258607,1771666325576,-500.0,0.00020873,2]
[406258608,1771666325585,-500.0,0.00020873,2]
[406258609,1771666325594,-160.7785833,0.00020873,2]
[406258610,1771666325603,-266.57473579,0.00020873,2]
[406258611,1771666325611,-161.00847627,0.00020873,2]
[406258612,1771666325620,-500.0,0.00020873,2]
[406258613,1771666325630,-500.0,0.00020873,2]
[406258614,1771666325639,-500.0,0.00020873,2]
[406258615,1771666325648,-500.0,0.00020873,2]
[406258616,1771666325658,-161.96682158,0.00020873,2]
[406258617,1771666325667,-209.51372498,0.00020873,2]
[406258618,1771666325676,-308.41743172,0.00020873,2]
[406258619,1771666325686,-500.0,0.00020873,2]
[406258620,1771666325695,-277.98755717,0.00020873,2]
[406258621,1771666325705,-500.0,0.00020873,2]
[406258622,1771666325714,-500.0,0.00020873,2]
[406258623,1771666325723,-500.0,0.00020873,2]
[406258624,1771666325733,-500.0,0.00020873,2]
[406258625,1771666325743,-500.0,0.00020873,2]
[406258626,1771666325752,-523.93558556,0.00020873,2]
[406258627,1771666325761,-500.0,0.00020873,2]
[406258628,1771666325770,-335.40104362,0.00020873,2]
[406258629,1771666325780,-337.50400645,0.00020873,2]
[406258630,1771666325789,-161.02365672,0.00020873,2]
[406258631,1771666325798,-500.0,0.00020873,2]
[406258632,1771666325808,-500.0,0.00020873,2]
[406258633,1771666325818,-500.0,0.00020873,2]
[406258634,1771666325827,-500.0,0.00020873,2]
[406258635,1771666325837,-500.0,0.00020873,2]
[406258636,1771666325847,-163.64801868,0.00020873,2]
[406258637,1771666325856,-500.0,0.00020873,2]
[406258638,1771666325866,-163.87488715,0.00020873,2]
[406258639,1771666325876,-500.0,0.00020873,2]
[406258640,1771666325885,-619.14973919,0.00020873,2]
[406258641,1771666325895,-500.0,0.00020873,2]
[406258642,1771666325904,-500.0,0.00020873,2]
[406258643,1771666325913,-500.0,0.00020873,2]
[406258644,1771666325922,-500.0,0.00020873,2]
[406258645,1771666325932,-500.0,0.00020873,2]
[406258646,1771666325942,-500.0,0.00020873,2]
[406258647,1771666325951,-500.0,0.00020873,2]
[406258648,1771666325961,-500.0,0.00020873,2]
[406258649,1771666325970,-500.0,0.00020873,2]
[406258650,1771666325980,-500.0,0.00020873,2]
[406258651,1771666325989,-500.0,0.00020873,2]
[406258652,1771666325999,-500.0,0.00020873,2]
[406258653,1771666326008,-500.0,0.00020873,2]
[406258654,1771666326018,-500.0,0.00020873,2]
[406258655,1771666326027,-500.0,0.00020873,2]
[406258656,1771666326037,-500.0,0.00020873,2]
[406258657,1771666326047,-500.0,0.00020873,2]
[406258658,1771666326056,-500.0,0.00020873,2]
[406258659,1771666326066,-500.0,0.00020873,2]
[406258660,1771666326077,-500.0,0.00020873,2]
[406258661,1771666326086,-500.0,0.00020873,2]
[406258662,1771666326096,-500.0,0.00020873,2]
[406258663,1771666326106,-500.0,0.00020873,2]
[406258664,1771666326115,-500.4371677,0.00020873,2]
[406258665,1771666326125,-500.0,0.00020873,2]
[406258666,1771666326134,-500.0,0.00020873,2]
[406258667,1771666326144,-500.0,0.00020873,2]
[406258668,1771666326154,-500.0,0.00020873,2]
[406258669,1771666326163,-500.0,0.00020873,2]
[406258670,1771666326173,-500.0,0.00020873,2]
[406258671,1771666326182,-500.0,0.00020873,2]
[406258672,1771666326191,-225.18697532,0.00020964,2]
[406258673,1771666326201,-20000.0,0.00021,2]
[406258674,1771666326210,-40000.0,0.00021,2]
[406258675,1771666326219,-400.0,0.00021,2]
[406258676,1771666326228,-1000.0,0.00021049,2]
[406258677,1771666326237,-12561.91,0.00021068,2]
[406258678,1771666326247,-181.08010149,0.00021235,2]
[406258679,1771666326257,-2591.79503743,0.0002126,2]
[406258680,1771666326266,-6401.49,0.0002137,2]
[406258681,1771666326275,-799.4707148,0.00021421,2]
[406258682,1771666326284,-500.24648354,0.00021421,2]
[406258683,1771666326294,-1000.0,0.00021421,2]
[406258684,1771666326303,-1000.0,0.00021421,2]
[406258685,1771666326313,-1000.0,0.00021421,2]
[406258686,1771666326322,-1000.0,0.00021421,2]
[406258687,1771666326332,-501.85276427,0.00021421,2]
[406258688,1771666326341,-1000.0,0.00021421,2]
[406258689,1771666326350,-990.36189657,0.00021421,2]
[406258690,1771666326359,-1000.0,0.00021421,2]
[406258691,1771666326369,-1000.0,0.00021421,2]
[406258692,1771666326378,-1005.69992817,0.00021421,2]
[406258693,1771666326387,-379.78728098,0.00021421,2]
[406258694,1771666326396,-603.42677279,0.00021421,2]
[406258695,1771666326405,-503.79470096,0.00021421,2]
[406258696,1771666326415,-351.48027425,0.00021421,2]
[406258697,1771666326423,-1000.0,0.00021421,2]
[406258698,1771666326433,-1000.0,0.00021421,2]
[406258699,1771666326443,-700.36533569,0.00021421,2]
[406258700,1771666326452,-466.50650868,0.00021421,2]
[406258701,1771666326464,-1000.0,0.00021421,2]
[406258702,1771666326474,-1000.0,0.00021421,2]
[406258703,1771666326483,-1000.0,0.00021421,2]
[406258704,1771666326493,-500.95146285,0.00021421,2]
[406258705,1771666326502,-1000.0,0.00021421,2]
[406258706,1771666326511,-1000.0,0.00021421,2]
[406258707,1771666326522,-1000.0,0.00021421,2]
[406258708,1771666326531,-1000.0,0.00021421,2]
[406258709,1771666326540,-1000.0,0.00021421,2]
[406258710,1771666326550,-1000.0,0.00021421,2]
[406258711,1771666326559,-503.23447762,0.00021421,2]
[406258712,1771666326570,-175.46082553,0.00021421,2]
[406258713,1771666326580,-1000.0,0.00021421,2]
[406258714,1771666326590,-1003.54531592,0.00021421,2]
[406258715,1771666326599,-1000.0,0.00021421,2]
[406258716,1771666326608,-762.64433011,0.00021421,2]
[406258717,1771666326618,-504.6633067,0.00021421,2]
[406258718,1771666326626,-373.81925548,0.00021421,2]
[406258719,1771666326636,-1000.0,0.00021421,2]
[406258720,1771666326645,-500.51023068,0.00021421,2]
[406258721,1771666326655,-504.34899307,0.00021421,2]
[406258722,1771666326665,-1003.07804053,0.00021421,2]
[406258723,1771666326675,-502.30459908,0.00021421,2]
[406258724,1771666326684,-1000.0,0.00021421,2]
[406258725,1771666326693,-1000.0,0.00021421,2]
[406258726,1771666326704,-502.03500133,0.00021421,2]
[406258727,1771666326713,-504.46749239,0.00021421,2]
[406258728,1771666326723,-503.28614098,0.00021421,2]
[406258729,1771666326733,-1003.84941121,0.00021421,2]
[406258730,1771666326742,-1004.49526467,0.00021421,2]
[406258731,1771666326752,-57750.39566956,0.000215,2]
[406258732,1771666326761,-233.51889341,0.00021512,2]
[406258733,1771666326771,-369.46,0.00021565,2]
[406258734,1771666326781,-151.00118991,0.00021737,2]
[406258735,1771666326790,-1600.0,0.00021772,2]
[406258736,1771666326799,-2023.50730136,0.00021917,2]
[406258737,1771666326808,-5000.0,0.00021918,2]
[406258738,1771666326818,-501.07412879,0.00021968,2]
[406258739,1771666326827,-702.53221939,0.00021968,2]
[406258740,1771666326836,-501.24820967,0.00021968,2]
[406258741,1771666326846,-503.30376704,0.00021968,2]
[406258742,1771666326855,-1500.0,0.00021968,2]
[406258743,1771666326864,-1214.60757042,0.00021968,2]
[406258744,1771666326873,-502.4507475,0.00021968,2]
[406258745,1771666326883,-507.85167987,0.00021968,2]
[406258746,1771666326892,-1500.0,0.00021968,2]
[406258747,1771666326902,-503.50237615,0.00021968,2]
[406258748,1771666326912,-1500.0,0.00021968,2]
[406258749,1771666326921,-1001.06979022,0.00021968,2]
[406258750,1771666326930,-1000.0,0.00021968,2]
[406258751,1771666326940,-501.34642991,0.00021968,2]
[406258752,1771666326949,-343.47413348,0.00021968,2]
[406258753,1771666326958,-503.49517713,0.00021968,2]
[406258754,1771666326967,-1500.0,0.00021968,2]
[406258755,1771666326976,-1500.0,0.00021968,2]
[406258756,1771666326985,-1003.62206194,0.00021968,2]
[406258757,1771666326994,-503.21373635,0.00021968,2]
[406258758,1771666327004,-1500.0,0.00021968,2]
[406258759,1771666327014,-1002.04789139,0.00021968,2]
[406258760,1771666327023,-1008.69934728,0.00021968,2]
[406258761,1771666327032,-6609.29,0.00021973,2]
[406258762,1771666327042,-500.0,0.00021999,2]
[406258763,1771666327052,-404.7,0.00022,7]
[406258764,1771666327061,-151.0,0.00022,2]
[406258765,1771666327071,-281092.68,0.00022,2]
[406258766,1771666327081,-242.15909246,0.0002206,2]
[406258767,1771666327091,-813.094793,0.00022236,30]
[406258768,1771666327101,-7897.779948,0.00022253,30]
[406258769,1771666327110,-369.46,0.00022394,2]
[406258770,1771666327120,-522.0,0.000224,7]
[406258771,1771666327129,-35636.34905129,0.000225,2]
[406258772,1771666327139,-2000.0,0.00022516,2]
[406258773,1771666327148,-501.41044564,0.00022516,2]
[406258774,1771666327157,-335.83213113,0.00022516,2]
[406258775,1771666327167,-287.53008729,0.00022516,2]
[406258776,1771666327176,-2000.0,0.00022516,2]
[406258777,1771666327186,-2000.0,0.00022516,2]
[406258778,1771666327196,-3619.4666294,0.000226,2]
[406258779,1771666327205,-187.78006525,0.00022604,2]
[406258780,1771666327215,-621.78829552,0.00022606,2]
[406258781,1771666327225,-251.11897888,0.00022608,2]
[406258782,1771666327234,-151.00118991,0.00022642,2]
[406258783,1771666327243,-151.0,0.0002277,2]
[406258784,1771666327253,-442.335122,0.0002277,2]
[406258785,1771666327263,-442.335122,0.0002277,2]
[406258786,1771666327272,-442.335122,0.0002277,2]
[406258787,1771666327282,-442.335122,0.0002277,2]
[406258788,1771666327291,-1000.0,0.00022963,2]
[406258789,1771666327300,-160.0,0.00023,2]
[406258790,1771666327311,-500.0,0.00023064,2]
[406258791,1771666327320,-549.32,0.00023064,2]
[406258792,1771666327330,-604.16,0.00023064,2]
[406258793,1771666327339,-213.57676851,0.00023064,2]
[406258794,1771666327349,-502.82545137,0.00023064,2]
[406258795,1771666327359,-695.96212957,0.00023064,2]
[406258796,1771666327369,-260.4103811,0.00023156,2]
[406258797,1771666327378,-151.00118991,0.00023548,2]
[406258798,1771666327387,-185.0,0.00023672,12]
[406258799,1771666327397,-189.0,0.00023672,12]
[406258800,1771666327406,-167.0,0.00023672,12]
[406258801,1771666327415,-270.0455652,0.00023704,2]
[406258802,1771666327424,-281092.68,0.000238,2]
[406258803,1771666327433,-1600.0,0.0002395,2]
[406258804,1771666327443,-254.909638,0.0002395,2]
[406258805,1771666327455,-254.909638,0.0002395,2]
[406258806,1771666327467,-254.909638,0.0002395,2]
[406258807,1771666327477,-254.909639,0.0002395,2]
[406258808,1771666327486,-595.396617,0.0002395,2]
[406258809,1771666327495,-223.911213,0.0002395,2]
[406258810,1771666327505,-595.396617,0.0002395,2]
[406258811,1771666327515,-223.911213,0.0002395,2]
[406258812,1771666327525,-595.396617,0.0002395,2]
[406258813,1771666327535,-223.911213,0.0002395,2]
[406258814,1771666327544,-595.396611,0.0002395,2]
[406258815,1771666327554,-223.911217,0.0002395,2]
[406258816,1771666327564,-194.72792766,0.00023973,2]
[406258817,1771666327574,-3600.0,0.00024,2]
[406258818,1771666327584,-374.99944524,0.00024036,2]
[406258819,1771666327593,-404.7,0.000241,7]
[406258820,1771666327603,-3712.54470479,0.0002421,2]
[406258821,1771666327613,-280.03725112,0.00024252,2]
[406258822,1771666327622,-151.00118991,0.00024454,2]
[406258823,1771666327632,-333.76,0.00024496,30]
[406258824,1771666327641,-193.45592901,0.0002463,2]
[406258825,1771666327650,-1000.0,0.00024658,2]
[406258826,1771666327660,-150.0,0.00024658,2]
[406258827,1771666327670,-6859.45,0.00024772,2]
[406258828,1771666327679,-290.39862941,0.000248,2]
[406258829,1771666327689,-154.3784608,0.00024997,5]
[406258830,1771666327699,-18514.14769923,0.00025,2]
[406258831,1771666327709,-7141.15681376,0.00025,2]
[406258832,1771666327719,-160.0,0.00025,30]
[406258833,1771666327729,-3359.1065422,0.00025305,2]
[406258834,1771666327739,-201.93286099,0.00025342,2]
[406258835,1771666327748,-644.79446246,0.00025345,2]
[406258836,1771666327758,-301.1433787,0.00025348,2]
[406258837,1771666327768,-151.00118991,0.0002536,2]
[406258838,1771666327778,-49639.38954939,0.0002539,2]
[406258839,1771666327787,-151.0,0.0002539,2]
[406258840,1771666327797,-151.0,0.0002539,2]
[406258841,1771666327807,-153.174785,0.0002539,2]
[406258842,1771666327816,-275.46269,0.0002539,2]
[406258843,1771666327825,-470.612915,0.0002539,2]
[406258844,1771666327835,-470.612915,0.0002539,2]
[406258845,1771666327845,-470.612915,0.0002539,2]
[406258846,1771666327855,-470.612915,0.0002539,2]
[406258847,1771666327865,-522.0,0.000256,10]
[406258848,1771666327875,-150.0,0.0002589,2]
[406258849,1771666327884,-1600.0,0.00026127,120]
[406258850,1771666327894,-151.00118991,0.00026265,2]
[406258851,1771666327904,-23745.81,0.00026591,2]
[406258852,1771666327915,-9999.99,0.00026591,2]
[406258853,1771666327926,-281092.68,0.000266,2]
[406258854,1771666327936,-209.40437684,0.00026711,2]
[406258855,1771666327945,-151.00118991,0.00027171,2]
[406258856,1771666327955,-150.0,0.00027185,2]
[406258857,1771666327965,-221.18984911,0.00027369,2]
[406258858,1771666327975,-257.94123868,0.0002737,30]
[406258859,1771666327984,-1000.0,0.00027397,20]
[406258860,1771666327994,-3000.0,0.00027397,2]
[406258861,1771666328003,-3000.0,0.00027397,2]
[406258862,1771666328013,-3000.0,0.00027397,2]
[406258863,1771666328023,-1015.465871,0.00027397,2]
[406258864,1771666328033,-173.74378417,0.00028,30]
[406258865,1771666328043,-151.00118991,0.00028077,2]
[406258866,1771666328054,-217.15233878,0.0002808,2]
[406258867,1771666328064,-292.08381021,0.00028084,2]
[406258868,1771666328075,-500.0,0.00028202,8]
[406258869,1771666328085,-500.0,0.00028202,8]
[406258870,1771666328095,-500.0,0.00028202,8]
[406258871,1771666328106,-500.0,0.0002841,8]
[406258872,1771666328115,-150.0,0.00028493,24]
[406258873,1771666328125,-159.0,0.00028493,24]
[406258874,1771666328135,-150.0,0.00028493,24]
[406258875,1771666328145,-166.0,0.00028493,24]
[406258876,1771666328155,-279.0,0.00028493,24]
[406258877,1771666328165,-333.76,0.00028525,30]
[406258878,1771666328176,-150.0,0.00028544,2]
[406258879,1771666328186,-522.0,0.000288,13]
[406258880,1771666328196,-151.00118991,0.00028982,2]
[406258881,1771666328206,-313.09003359,0.00029,120]
[406258882,1771666328216,-150.0,0.00029175,5]
[406258883,1771666328226,-150.0,0.00029175,5]
[406258884,1771666328236,-341.20368415,0.00029449,2]
[406258885,1771666328246,-5588.62574747,0.000295,120]
[406258886,1771666328256,-1897.221185,0.00029649,30]
[406258887,1771666328267,-18428.153213,0.00029671,30]
[406258888,1771666328279,-281092.68,0.000297,2]
[406258889,1771666328289,-250.0,0.00029723,5]
[406258890,1771666328299,-250.0,0.00029723,5]
[406258891,1771666328309,-151.00118991,0.00029888,2]
[406258892,1771666328319,-150.0,0.00029971,2]
[406258893,1771666328328,-177.84768566,0.0003,120]
[406258894,1771666328338,-151.313364,0.0003,7]